bitfinex/quotes_ETHUSD_20260114
["timestamp","ask_amount","ask_price","bid_price","bid_amount"]
[1768421186689,1.4656559,3369.1,3368.2,0.59381045]
[1768421186690,0.03710299,3369.0,3368.2,0.59381045]
[1768421186896,1.4656559,3369.0,3368.2,0.59381045]
[1768421187289,2.96832794,3368.9,3368.2,0.59381045]
[1768421187493,2.96832794,3368.9,3368.1,0.396]
[1768421187697,1.5027611,3368.8,3367.5,2.96951718]
[1768421187997,1.4656559,3368.8,3368.0,0.396]
[1768421188202,1.4656559,3369.2,3368.0,0.396]
[1768421188404,7.4010785,3369.6,3368.2,2.96894483]
[1768421188604,4.4333672,3369.6,3368.3,0.33649448]
[1768421188804,1.4656559,3369.6,3368.3,0.33649448]
[1768421188985,1.4676559,3370.0,3368.3,0.33649448]
[1768421189180,1.4656559,3369.6,3368.3,0.33649448]
[1768421189379,1.4656559,3369.4,3368.4,0.396]
[1768421189790,0.002,3369.7,3368.5,0.33648558]
[1768421190280,1.4656559,3369.6,3368.5,0.33648558]
[1768421190473,0.03709749,3369.5,3368.5,0.33648558]
[1768421190683,1.4656559,3369.5,3367.4,2.96960052]
[1768421191003,1.4656559,3369.5,3368.3,2.96879107]
[1768421191375,4.43353252,3369.5,3368.4,0.396]
[1768421192302,1.4656559,3369.5,3368.4,0.396]
[1768421192902,0.002,3369.2,3368.4,0.396]
[1768421193271,0.002,3369.2,3368.5,2.96868042]
[1768421193470,0.002,3369.2,3368.4,0.396]
[1768421193471,0.002,3369.2,3368.3,2.96878569]
[1768421193672,0.002,3369.2,3368.6,0.396]
[1768421193876,0.002,3369.2,3368.7,0.396]
[1768421195207,0.002,3369.2,3368.3,2.96884723]
[1768421195404,1.4676559,3369.2,3368.4,0.396]
[1768421195582,0.74034308,3369.1,3368.5,0.396]
[1768421196108,0.002,3370.0,3368.6,0.02968592]
[1768421196271,1.4656559,3370.4,3368.6,0.02968592]
[1768421196272,4.43267991,3370.4,3368.6,0.02968592]
[1768421196607,2.96669227,3370.8,3369.2,0.0115036]
[1768421196783,1.4656559,3370.8,3369.2,0.0115036]
[1768421196982,4.43232983,3370.8,3369.2,0.0115036]
[1768421197170,5.17241217,3370.8,3369.2,0.0115036]
[1768421197373,0.002,3370.9,3369.4,1.43396893]
[1768421197584,0.002,3370.9,3369.5,0.396]
[1768421198190,2.96858592,3370.9,3369.5,0.396]
[1768421198508,0.002,3370.9,3369.5,0.396]
[1768421198808,0.002,3370.9,3369.3,8.90392662]
[1768421198809,1.4656559,3370.8,3369.6,0.396]
[1768421199392,1.4656559,3370.8,3369.7,5.93524646]
[1768421199708,0.002,3370.9,3369.8,0.63312465]
[1768421200007,0.002,3370.9,3369.8,2.06209221]
[1768421200184,0.002,3370.9,3369.9,1.42896756]
[1768421200506,0.002,3370.9,3369.8,0.63312465]
[1768421201411,4.43422721,3370.9,3369.9,0.396]
[1768421201608,0.002,3370.9,3369.9,0.396]
[1768421201778,0.002,3370.9,3370.0,0.77551694]
[1768421202377,1.4656559,3372.4,3370.4,6.99638838]
[1768421202611,1.4656559,3372.4,3370.3,1.41971206]
[1768421202986,1.4656559,3372.4,3370.4,0.396]
[1768421203391,1.4656559,3372.2,3370.5,2.96691885]
[1768421203593,1.4656559,3372.2,3370.6,0.33629188]
[1768421204406,1.4656559,3372.0,3370.6,0.33629188]
[1768421204602,1.4656559,3372.0,3370.0,2.96734791]
[1768421204603,1.4656559,3372.0,3370.7,0.396]
[1768421205121,1.4656559,3372.0,3369.4,0.128]
[1768421205317,1.4656559,3372.0,3369.7,2.96757805]
[1768421205518,1.4656559,3371.8,3369.5,0.396]
[1768421206202,1.4656559,3371.8,3369.6,5.9354226]
[1768421206410,1.4656559,3371.6,3369.7,1.13076802]
[1768421206601,1.4656559,3371.6,3369.7,0.73476802]
[1768421206794,1.4656559,3371.6,3369.8,0.396]
[1768421207091,1.4656559,3371.6,3369.7,0.73476802]
[1768421207286,1.4656559,3371.6,3369.8,0.396]
[1768421207505,1.4656559,3371.4,3369.8,0.396]
[1768421208005,1.4656559,3371.4,3369.9,0.02967447]
[1768421208186,1.4656559,3371.4,3369.8,3.36349042]
[1768421209402,2.96621481,3371.3,3370.0,2.96735905]
[1768421209612,2.96621481,3371.3,3370.0,0.63308495]
[1768421209613,2.20546003,3371.2,3370.0,0.63308495]
[1768421209958,0.03207065,3371.1,3370.1,0.396]
[1768421210598,0.03207065,3371.1,3370.1,0.42567271]
[1768421210924,1.52447573,3372.0,3370.2,1.39770529]
[1768421211124,1.52447573,3372.0,3370.3,1.42737623]
[1768421211424,4.49015645,3372.0,3370.3,1.39770529]
[1768421211626,0.44921564,3371.9,3370.5,2.96691885]
[1768421212501,0.44921564,3371.9,3370.5,5.9338377]
[1768421212705,0.44921564,3371.9,3370.5,2.96691885]
[1768421213016,1.52447573,3371.8,3369.8,2.96753097]
[1768421213198,1.52447573,3371.6,3369.9,0.2967531]
[1768421213393,1.52447573,3371.6,3370.0,0.396]
[1768421213611,1.52447573,3371.4,3370.0,0.396]
[1768421214225,1.52447573,3371.4,3370.1,0.02967271]
[1768421214531,5.93192462,3371.6,3370.2,0.02967182]
[1768421214695,5.93192462,3371.6,3370.0,6.33070431]
[1768421214899,3.84996649,3371.6,3370.1,0.77192221]
[1768421215510,6.8159288,3371.6,3370.1,0.77192221]
[1768421215710,5.37444222,3371.6,3370.2,5.9343659]
[1768421215923,2.965687,3371.9,3370.3,0.02967094]
[1768421217230,5.931374,3371.9,3370.2,5.9343659]
[1768421217461,1.52447573,3371.8,3370.1,3.73915413]
[1768421217722,1.52447573,3371.6,3370.3,0.396]
[1768421218222,1.52447573,3371.6,3370.3,0.397]
[1768421218433,0.002,3371.1,3370.3,0.397]
[1768421219037,0.002,3371.4,3370.4,1.40941861]
[1768421219331,1.52647573,3372.4,3370.5,1.37563377]
[1768421219529,1.52647573,3372.4,3370.8,1.37563377]
[1768421219829,1.52647573,3372.4,3370.9,5.93313358]
[1768421220124,4.49173856,3372.4,3371.0,1.02754318]
[1768421220325,4.49173856,3372.4,3371.1,0.396]
[1768421220505,4.49173856,3372.4,3371.2,0.396]
[1768421220713,1.52647573,3372.1,3371.3,0.396]
[1768421221245,1.52647573,3372.1,3371.4,0.396]
[1768421221743,5.9311981,3372.0,3370.3,0.001]
[1768421221946,1.52447573,3371.9,3370.3,0.001]
[1768421223730,14.82799525,3372.0,3370.3,0.001]
[1768421223731,1.52447573,3371.5,3370.3,0.001]
[1768421223923,1.52447573,3371.5,3369.7,0.396]
[1768421224250,1.52447573,3371.3,3369.7,0.396]
[1768421224416,1.52447573,3371.1,3369.7,0.396]
[1768421224616,1.52447573,3371.1,3369.8,0.02967535]
[1768421224842,1.52447573,3371.1,3369.7,0.396]
[1768421225044,1.52447573,3371.1,3369.0,0.001]
[1768421225240,1.52447573,3371.1,3369.8,0.396]
[1768421225455,0.17045563,3371.0,3369.8,0.396]
[1768421225932,2.96656679,3370.9,3369.8,3.363497]
[1768421226136,2.96656679,3370.9,3369.8,0.396]
[1768421226631,1.52447573,3372.0,3369.9,1.36253777]
[1768421226960,4.49007478,3372.0,3370.1,1.36253777]
[1768421227125,0.44920748,3371.9,3370.1,1.36253777]
[1768421227326,0.44920748,3371.9,3370.2,0.396]
[1768421227327,1.52447573,3371.8,3370.2,0.396]
[1768421228034,7.45620155,3371.7,3370.3,2.96709491]
[1768421228754,1.52447573,3371.6,3369.2,1.35867491]
[1768421228934,1.52447573,3371.6,3370.0,2.96735778]
[1768421229132,1.52447573,3371.4,3370.0,2.96735778]
[1768421229337,1.52447573,3371.4,3369.8,2.96748004]
[1768421229538,1.52447573,3371.4,3368.7,1.35678986]
[1768421229734,1.52447573,3371.4,3369.1,0.396]
[1768421229944,1.52447573,3371.4,3370.1,2.96727037]
[1768421230139,3.22288303,3371.3,3370.2,0.42467182]
[1768421230354,3.22288303,3371.3,3370.2,0.395]
[1768421230559,3.41493397,3371.9,3370.3,0.02967094]
[1768421230560,2.96589318,3371.7,3370.3,0.02967094]
[1768421230761,2.96578629,3371.8,3370.2,1.7499029]
[1768421231127,0.002,3371.3,3370.2,1.7499029]
[1768421231441,0.002,3371.3,3369.5,0.001]
[1768421231442,0.002,3371.3,3370.3,0.395]
[1768421232359,0.002,3371.3,3369.7,1.3549029]
[1768421232360,1.52647573,3371.3,3369.2,4.32108912]
[1768421232566,1.52647573,3371.3,3370.3,0.395]
[1768421232567,1.6771233,3371.2,3370.3,0.395]
[1768421232748,0.15264757,3371.2,3370.4,0.02967006]
[1768421232951,0.002,3371.3,3370.3,6.32918784]
[1768421234156,0.002,3371.6,3370.3,6.32918784]
[1768421234157,0.002,3371.6,3370.6,1.34942073]
[1768421234327,1.52447573,3372.5,3370.7,0.02966742]
[1768421234522,2.96516029,3372.5,3370.7,1.37732776]
[1768421234764,2.96509619,3372.6,3370.9,1.34766034]
[1768421234973,1.52447573,3372.9,3370.9,1.377326]
[1768421235261,2.96518566,3372.5,3370.9,1.34766034]
[1768421235959,1.52647573,3372.4,3370.8,1.32450032]
[1768421236147,1.52447573,3372.2,3370.9,0.395]
[1768421236360,1.52447573,3372.2,3370.2,0.128]
[1768421236559,1.52447573,3372.2,3370.9,0.395]
[1768421237076,1.52447573,3372.2,3369.9,0.128]
[1768421237374,1.52447573,3372.0,3370.0,0.70455104]
[1768421237575,1.52447573,3372.0,3370.0,0.395]
[1768421237779,1.52447573,3372.0,3370.2,2.96717236]
[1768421237949,1.52447573,3372.0,3370.1,0.395]
[1768421237950,1.52447573,3372.0,3370.1,3.36224164]
[1768421238282,1.52447573,3371.8,3370.1,3.36224164]
[1768421238578,1.52447573,3371.8,3370.2,0.395]
[1768421238744,1.52447573,3371.6,3370.3,0.66262978]
[1768421238945,2.965687,3371.9,3370.4,3.89]
[1768421239755,2.96562007,3372.0,3370.4,3.89]
[1768421240004,5.93124014,3372.0,3370.4,3.89]
[1768421240165,7.45571587,3372.0,3370.4,3.89]
[1768421240377,2.96577495,3371.8,3370.6,2.96683083]
[1768421240584,2.96577495,3371.8,3370.7,3.89]
[1768421240873,2.9657056,3371.9,3370.7,3.89]
[1768421241181,0.002,3372.4,3370.8,3.89]
[1768421241380,0.002,3372.4,3371.9,0.02062074]
[1768421241680,0.002,3372.4,3372.0,0.395]
[1768421241842,0.002,3372.8,3372.0,0.395]
[1768421242351,0.002,3372.8,3372.1,5.9310222]
[1768421242558,0.002,3373.0,3372.2,0.94669124]
[1768421242770,0.002,3373.0,3372.1,2.9655111]
[1768421243073,0.002,3373.0,3372.1,5.9310222]
[1768421243458,2.96603765,3373.8,3372.1,8.8965333]
[1768421243865,5.9300753,3373.8,3372.1,5.9310222]
[1768421244072,2.96602652,3373.8,3372.1,5.9310222]
[1768421244256,0.002,3373.8,3372.4,10.22517437]
[1768421244458,1.50611217,3374.4,3373.8,0.15453676]
[1768421244774,4.46960935,3374.4,3373.8,0.54953676]
[1768421244953,1.50611217,3374.4,3373.8,0.54953676]
[1768421245154,5.9262771,3374.8,3373.8,0.54953676]
[1768421245466,0.74323893,3374.7,3373.8,0.54953676]
[1768421246161,0.74323893,3374.7,3372.4,2.9652473]
[1768421246162,1.50611217,3374.6,3372.4,2.9652473]
[1768421246368,1.50611217,3374.6,3372.2,0.78306916]
[1768421246369,1.50611217,3374.4,3372.5,0.395]
[1768421246998,1.50611217,3374.3,3371.9,0.17523695]
[1768421247148,1.50611217,3374.3,3372.0,0.395]
[1768421247343,1.50611217,3374.1,3372.0,0.395]
[1768421247550,1.50611217,3374.1,3372.2,5.93079406]
[1768421248254,7.43379443,3374.0,3372.2,2.9653709]
[1768421248478,7.43379443,3374.0,3372.1,5.9310222]
[1768421249003,4.4699533,3374.0,3372.1,10.21833238]
[1768421249154,5.92680396,3374.5,3372.3,1.32179908]
[1768421249356,1.50611217,3375.5,3373.2,6.99638838]
[1768421249553,1.50611217,3375.5,3373.4,1.3203408]
[1768421249772,0.74309848,3375.4,3373.5,2.19151372]
[1768421250192,1.50611217,3375.3,3373.5,2.19151372]
[1768421250357,5.92557478,3375.2,3373.7,2.96410469]
[1768421250682,7.43168695,3375.2,3373.6,3.35916028]
[1768421250891,1.50611217,3375.1,3373.2,2.96447632]
[1768421251103,1.50611217,3375.1,3373.3,2.96437262]
[1768421251304,1.50611217,3374.9,3373.4,0.395]
[1768421251463,1.50611217,3374.9,3373.6,2.96413966]
[1768421252373,4.46923119,3374.9,3373.5,2.96426834]
[1768421252694,2.96313855,3374.8,3373.6,0.395]
[1768421252892,2.96313855,3374.8,3373.7,0.33592683]
[1768421253196,4.46917188,3374.9,3373.7,0.33592683]
[1768421253892,3.70616021,3375.0,3373.7,0.33592683]
[1768421254089,1.50611217,3375.3,3373.7,0.33592683]
[1768421254396,1.50611217,3376.3,3374.0,1.31328369]
[1768421254608,1.50611217,3376.3,3374.1,0.395]
[1768421254892,1.50611217,3376.2,3374.2,0.395]
[1768421255197,1.50611217,3376.1,3374.2,0.395]
[1768421255406,1.50611217,3376.1,3374.3,0.395]
[1768421256469,1.50611217,3375.9,3374.4,5.9269796]
[1768421256674,1.50611217,3375.9,3374.4,2.9634898]
[1768421256876,2.07354559,3375.8,3374.5,0.73084898]
[1768421257091,2.07554559,3375.8,3374.5,0.73084898]
[1768421257301,1.50611217,3375.7,3374.6,0.395]
[1768421257480,1.50611217,3375.7,3374.3,0.395]
[1768421257665,1.49065055,3375.7,3374.3,0.395]
[1768421258615,1.50611217,3375.5,3373.1,0.128]
[1768421258813,1.50611217,3375.5,3373.4,2.96435214]
[1768421259029,1.50611217,3375.3,3373.5,0.33593521]
[1768421259319,1.50611217,3375.3,3373.5,0.395]
[1768421260307,1.50611217,3375.3,3373.6,2.9641681]
[1768421260522,8.88836217,3375.2,3373.5,0.395]
[1768421260819,1.50611217,3375.1,3373.1,2.96461421]
[1768421261020,1.50611217,3375.1,3373.6,0.395]
[1768421261335,1.50611217,3374.9,3373.3,0.395]
[1768421262481,1.50611217,3374.7,3373.3,0.395]
[1768421262918,1.50611217,3374.7,3373.4,0.02964368]
[1768421263491,2.96292782,3375.1,3373.3,9.28835801]
[1768421263687,1.50611217,3375.0,3373.4,0.9288358]
[1768421264140,1.50611217,3375.5,3373.4,2.24593704]
[1768421264288,2.96429371,3375.8,3373.5,1.34674404]
[1768421264488,7.43269959,3375.8,3373.5,1.31710124]
[1768421264723,1.50611217,3375.7,3373.6,5.9283851]
[1768421264905,1.50611217,3375.5,3373.7,1.37615554]
[1768421265088,1.50611217,3375.5,3373.8,0.395]
[1768421265419,1.50611217,3375.5,3373.9,0.395]
[1768421265621,1.50611217,3375.5,3374.0,0.02963841]
[1768421265917,1.50611217,3375.5,3373.9,0.395]
[1768421266122,1.50611217,3375.5,3374.1,0.02963753]
[1768421266329,0.25456115,3375.4,3373.9,0.395]
[1768421266816,5.92539922,3375.3,3374.0,2.96384113]
[1768421266994,1.50611217,3375.2,3373.9,2.96389848]
[1768421267201,1.50611217,3375.2,3374.0,0.394]
[1768421267525,0.25456115,3375.4,3374.1,0.02963753]
[1768421267725,1.03949933,3375.6,3375.2,0.01391546]
[1768421267726,2.96248817,3375.6,3375.2,0.01391546]
[1768421267939,0.002,3375.8,3375.2,0.01391546]
[1768421268087,1.50611217,3376.7,3375.3,0.394]
[1768421268489,4.46763784,3376.7,3375.3,0.394]
[1768421268891,4.46763784,3376.7,3375.4,5.92522366]
[1768421269216,1.50611217,3376.7,3375.4,5.92522366]
[1768421269826,0.002,3375.8,3375.4,5.92522366]
[1768421269987,4.46759566,3376.7,3375.5,0.92958815]
[1768421270194,1.50611217,3376.7,3375.5,0.92958815]
[1768421270907,1.50611217,3376.7,3375.6,2.9624363]
[1768421271891,1.50611217,3376.7,3375.6,5.9248726]
[1768421272092,1.50611217,3376.7,3375.6,2.9624363]
[1768421272324,1.50611217,3376.7,3375.7,0.68545471]
[1768421273093,4.46759,3376.7,3375.3,0.394]
[1768421273303,1.42711607,3376.6,3375.1,2.9628587]
[1768421273502,1.42711607,3376.6,3375.2,0.394]
[1768421273923,1.42711607,3376.6,3375.2,3.35672349]
[1768421274126,1.42711607,3376.6,3375.4,2.96260323]
[1768421274324,0.73500717,3376.5,3375.2,0.394]
[1768421274524,1.42711607,3376.8,3375.2,0.394]
[1768421274823,1.42711607,3376.8,3375.7,5.92468039]
[1768421275131,1.42711607,3376.8,3375.3,8.88805132]
[1768421275824,1.42711607,3377.3,3375.4,1.30231234]
[1768421276028,2.96277078,3377.5,3375.4,1.30231234]
[1768421276232,0.29627708,3377.4,3375.6,1.30231234]
[1768421276922,1.42711607,3377.2,3375.6,5.9248726]
[1768421277095,1.42711607,3377.2,3375.7,0.394]
[1768421277672,1.42711607,3377.2,3375.8,0.394]
[1768421278129,1.42711607,3377.2,3374.7,1.30126065]
[1768421278130,1.42711607,3377.2,3374.0,7.30745537]
[1768421278431,1.42711607,3377.0,3375.2,2.96278236]
[1768421278730,1.42711607,3377.0,3375.5,2.96251817]
[1768421279223,7.34970779,3376.9,3375.4,2.96261183]
[1768421279631,1.42711607,3376.9,3375.5,0.02962524]
[1768421279926,1.42711607,3376.9,3375.6,0.63488489]
[1768421280395,1.42711607,3376.9,3374.9,2.96296707]
[1768421280597,1.42711607,3376.9,3374.2,0.6361465]
[1768421280798,1.42711607,3376.9,3374.4,0.42363489]
[1768421280995,1.42711607,3376.9,3374.6,2.96327846]
[1768421281199,0.29627708,3377.4,3374.8,5.9262771]
[1768421281200,1.42711607,3376.7,3374.8,5.9262771]
[1768421281455,1.42711607,3376.7,3374.9,1.32681192]
[1768421281613,1.42711607,3376.7,3375.8,0.001]
[1768421281808,1.86596603,3376.7,3375.9,0.394]
[1768421282942,1.42711607,3376.6,3375.8,0.001]
[1768421283155,1.42711607,3376.6,3374.8,2.96313855]
[1768421283447,1.42711607,3376.4,3375.0,0.394]
[1768421283660,1.42711607,3376.4,3374.2,0.001]
[1768421283951,1.42711607,3376.2,3374.3,0.394]
[1768421284149,1.42711607,3376.2,3374.4,2.96342039]
[1768421284449,1.42711607,3376.2,3374.3,0.394]
[1768421284661,1.31440085,3376.2,3374.3,0.394]
[1768421284971,1.31440085,3376.2,3374.2,0.001]
[1768421285114,1.42711607,3376.0,3374.5,2.96338159]
[1768421285316,1.42711607,3375.8,3374.6,0.02963314]
[1768421285559,1.42711607,3375.8,3374.6,2.96331028]
[1768421285724,1.42711607,3375.8,3374.2,0.001]
[1768421286331,1.42711607,3375.8,3374.5,2.96338921]
[1768421286657,1.42711607,3375.8,3374.6,0.62232848]
[1768421286826,1.42711607,3375.8,3374.4,2.96343194]
[1768421287029,1.42711607,3375.8,3374.2,0.001]
[1768421287235,1.42711607,3375.6,3374.2,0.001]
[1768421289048,0.23456065,3376.1,3374.2,0.03063665]
[1768421289049,2.96226649,3375.8,3374.2,0.03063665]
[1768421289424,4.38921928,3376.0,3374.3,5.92715526]
[1768421289657,1.42711607,3376.0,3374.4,0.92178649]
[1768421289958,1.42711607,3376.0,3374.4,0.8921516]
[1768421290183,1.42711607,3376.0,3374.5,0.394]
[1768421290370,1.42711607,3376.0,3374.4,0.8921516]
[1768421290524,1.42711607,3376.0,3374.2,0.395]
[1768421290740,1.42711607,3376.0,3374.2,6.32227172]
[1768421291632,1.42711607,3375.8,3374.2,6.32227172]
[1768421291962,1.42711607,3375.8,3374.3,0.02963577]
[1768421292169,1.42711607,3375.8,3374.2,6.32227172]
[1768421292372,1.42711607,3375.6,3374.3,0.63222717]
[1768421292561,0.73514622,3375.7,3374.3,0.394]
[1768421292758,1.42711607,3376.2,3374.4,1.43037975]
[1768421293277,1.42711607,3376.2,3374.3,0.394]
[1768421293638,7.35111121,3376.1,3374.4,5.9269796]
[1768421294738,7.35111121,3376.1,3374.7,0.001]
[1768421294957,4.38911364,3376.1,3374.7,0.03063226]
[1768421295161,4.38911364,3376.1,3374.7,0.001]
[1768421295370,4.38911364,3376.1,3374.7,0.03063226]
[1768421295662,4.38911364,3376.1,3374.7,0.001]
[1768421296651,1.42711607,3376.0,3374.7,0.001]
[1768421296852,1.42711607,3375.7,3374.8,0.394]
[1768421298384,1.42711607,3375.7,3374.9,0.0296305]
[1768421298594,1.42711607,3375.7,3374.8,0.394]
[1768421298988,4.38951803,3375.7,3374.8,0.394]
[1768421299361,1.42711607,3375.6,3374.7,0.001]
[1768421299567,1.42711607,3375.4,3374.7,0.001]
[1768421301700,1.47010448,3376.4,3374.7,0.001]
[1768421303355,1.47010448,3376.3,3374.7,0.001]
[1768421303692,1.47010448,3376.1,3374.7,0.001]
[1768421303869,1.47010448,3375.9,3374.7,0.001]
[1768421304684,1.47010448,3375.9,3372.9,2.96478713]
[1768421304685,1.47010448,3375.5,3373.0,0.393]
[1768421304984,1.47010448,3375.5,3372.5,0.393]
[1768421304985,1.47010448,3374.9,3372.5,0.393]
[1768421305167,1.47010448,3374.7,3372.5,0.393]
[1768421305365,1.47010448,3374.7,3372.8,2.96484214]
[1768421305674,1.47010448,3374.5,3372.5,3.3581493]
[1768421305871,1.47010448,3374.5,3372.5,0.393]
[1768421306074,1.47010448,3374.5,3372.1,2.965459]
[1768421306386,14.81657085,3374.6,3371.7,0.54748119]
[1768421306387,1.47010448,3373.9,3371.7,0.54748119]
[1768421306697,1.47010448,3373.9,3371.6,2.96588417]
[1768421306698,1.47010448,3373.8,3371.6,2.96592961]
[1768421306983,1.47010448,3373.6,3371.6,0.393]
[1768421307555,1.47010448,3373.6,3371.5,0.54759941]
[1768421307755,1.47010448,3373.4,3371.5,0.54759941]
[1768421307958,1.47010448,3373.2,3371.5,0.54759941]
[1768421308160,1.47010448,3373.2,3371.6,0.0296595]
[1768421308786,1.47010448,3373.2,3371.5,10.83685767]
[1768421309004,1.47010448,3373.4,3371.6,1.4202323]
[1768421309568,1.47010448,3373.9,3372.0,1.38997838]
[1768421309771,1.47010448,3374.3,3372.2,1.38997838]
[1768421310007,1.47010448,3374.3,3372.3,1.02865117]
[1768421310182,1.47010448,3374.3,3372.4,1.41963085]
[1768421310706,1.47010448,3374.3,3372.5,0.393]
[1768421310867,1.47010448,3374.8,3372.6,1.4190581]
[1768421311066,1.47010448,3374.8,3372.7,0.18120581]
[1768421311875,1.47010448,3374.6,3372.8,5.92979126]
[1768421312113,1.47010448,3374.6,3372.8,2.96489563]
[1768421312313,1.47010448,3374.6,3372.9,0.393]
[1768421313102,1.47010448,3374.6,3373.0,0.02964719]
[1768421313310,1.47010448,3374.6,3372.9,0.393]
[1768421313311,1.47010448,3374.6,3373.1,0.63524384]
[1768421314011,1.47010448,3374.4,3373.2,2.96454405]
[1768421315979,1.47010448,3374.2,3373.1,0.63524384]
[1768421316206,1.47010448,3374.2,3372.9,3.35780215]
[1768421316401,1.47010448,3374.2,3373.0,2.96471676]
[1768421316589,1.47010448,3374.2,3372.9,0.393]
[1768421316799,1.47010448,3374.2,3373.2,2.96454175]
[1768421317001,1.47010448,3374.2,3373.2,0.63222796]
[1768421317916,1.47010448,3374.2,3373.3,0.02964456]
[1768421318086,4.43378561,3374.2,3373.3,0.02964456]
[1768421318286,4.43378561,3374.2,3373.2,0.63222796]
[1768421319411,7.39746674,3374.2,3373.5,0.001]
[1768421319582,1.47010448,3374.1,3373.5,0.001]
[1768421320219,1.47010448,3373.9,3372.3,2.96531081]
[1768421320410,1.47010448,3373.9,3372.4,3.35823214]
[1768421320811,1.47010448,3373.9,3372.4,0.393]
[1768421320991,1.47010448,3373.7,3371.4,1.38377683]
[1768421321197,1.47010448,3373.7,3372.0,2.96558736]
[1768421321397,1.47010448,3373.7,3371.6,0.393]
[1768421321581,1.47010448,3373.7,3372.0,2.96556209]
[1768421322018,1.47010448,3373.7,3371.6,0.393]
[1768421322225,1.47010448,3373.4,3371.8,2.9657654]
[1768421322396,1.47010448,3373.4,3371.9,0.393]
[1768421322898,1.47010448,3373.4,3372.0,0.393]
[1768421323421,1.47010448,3373.4,3371.7,0.58613762]
[1768421323719,1.47010448,3373.4,3371.8,0.02965774]
[1768421323910,1.47010448,3373.4,3371.7,6.32471723]
[1768421324218,1.47010448,3373.2,3371.7,3.35885432]
[1768421325014,1.47010448,3373.2,3371.7,0.393]
[1768421325224,1.47010448,3373.2,3371.5,0.15459941]
[1768421325390,1.47010448,3373.1,3371.7,3.30884475]
[1768421326117,1.47010448,3373.1,3371.7,6.27470766]
[1768421326418,4.43475228,3373.1,3371.7,6.27470766]
[1768421326626,4.4347453,3373.1,3371.7,6.27470766]
[1768421326796,1.47010448,3373.1,3371.7,6.27470766]
[1768421326998,1.47010448,3373.1,3371.8,0.96918002]
[1768421327191,4.43394561,3374.0,3372.0,1.38077909]
[1768421327390,1.47010448,3373.9,3372.0,1.38077909]
[1768421327628,1.47010448,3373.9,3372.1,0.393]
[1768421327797,1.47010448,3373.9,3372.2,1.58732049]
[1768421327798,0.44339456,3373.8,3372.2,1.58732049]
[1768421327997,0.44339456,3373.8,3372.2,1.55766626]
[1768421329100,0.44339456,3373.8,3372.3,8.92565904]
[1768421329302,1.47010448,3374.5,3372.4,1.37980628]
[1768421329623,1.47010448,3374.5,3372.6,1.3793254]
[1768421329990,2.96331417,3374.6,3372.8,1.3793254]
[1768421330253,4.43315523,3374.9,3373.0,1.3793254]
[1768421330392,2.13741192,3374.8,3373.1,0.393]
[1768421330588,1.39780529,3374.7,3373.1,0.393]
[1768421331192,5.92662834,3374.6,3373.2,2.96454405]
[1768421331392,7.32443363,3374.6,3373.2,2.96454405]
[1768421331595,7.32443363,3374.6,3373.3,0.001]
[1768421331793,1.10272172,3374.5,3373.3,0.77124984]
[1768421333526,0.002,3374.6,3373.5,1.35791692]
[1768421334740,0.002,3374.6,3373.6,0.393]
[1768421335231,0.002,3374.9,3373.6,0.393]
[1768421335539,0.002,3374.9,3373.7,5.92820938]
[1768421337441,0.002,3374.9,3373.9,2.96392898]
[1768421337761,0.73457479,3374.9,3373.9,2.96392898]
[1768421337937,0.002,3374.9,3373.9,5.92785796]
[1768421338839,0.002,3374.9,3373.9,2.96392898]
[1768421339339,0.002,3374.9,3373.8,3.35699089]
[1768421339340,1.39980529,3374.9,3373.8,0.393]
[1768421339509,2.96313855,3374.8,3373.8,0.393]
[1768421339709,0.73260469,3374.7,3373.8,0.393]
[1768421340213,0.73260469,3374.7,3373.8,3.35699206]
[1768421340843,1.39980529,3374.9,3373.8,7.67892581]
[1768421340844,0.002,3374.9,3373.8,7.67892581]
[1768421341054,0.002,3374.9,3373.9,1.35791692]
[1768421341254,1.39780529,3375.9,3373.9,1.35791692]
[1768421342033,7.32232687,3375.8,3374.0,5.92768226]
[1768421342423,1.39780529,3375.7,3374.0,5.92768226]
[1768421342625,0.73223269,3375.6,3374.1,1.06424951]
[1768421342825,0.73223269,3375.6,3374.1,2.42216643]
[1768421343146,2.13003798,3375.6,3374.1,2.42216643]
[1768421344143,5.09254035,3375.6,3374.2,5.92733092]
[1768421344443,5.09454035,3375.6,3374.2,5.92733092]
[1768421344614,5.09454035,3375.6,3374.3,1.13133385]
[1768421345314,8.05704272,3375.6,3374.3,1.13133385]
[1768421345525,5.09454035,3375.6,3374.3,1.13133385]
[1768421345924,3.69673506,3375.6,3374.3,1.13133385]
[1768421346219,0.002,3375.6,3374.4,2.9634898]
[1768421347447,1.39980529,3375.6,3374.3,4.09486935]
[1768421348220,1.39780529,3375.4,3373.5,2.96420568]
[1768421348444,1.39780529,3375.4,3373.3,1.35891692]
[1768421348753,1.39780529,3375.4,3373.4,0.393]
[1768421348952,1.39780529,3375.4,3373.4,1.75091692]
[1768421349119,0.73248534,3375.3,3374.0,1.35791692]
[1768421349320,0.002,3375.6,3374.3,7.2850694]
[1768421349552,0.002,3375.6,3374.4,0.393]
[1768421349751,2.96444562,3375.6,3374.4,0.393]
[1768421350518,0.002,3375.6,3374.4,3.35646414]
[1768421351250,1.39980529,3375.6,3374.5,0.393]
[1768421351419,1.39780529,3375.4,3374.5,0.393]
[1768421351620,1.39780529,3375.4,3374.2,2.96364156]
[1768421351826,1.39780529,3375.4,3374.3,0.393]
[1768421352327,1.39780529,3375.4,3374.3,3.35657115]
[1768421352793,1.39780529,3375.3,3374.3,3.35657314]
[1768421352938,1.64065473,3375.3,3374.3,3.35657314]
[1768421353426,1.64065473,3375.3,3374.3,0.393]
[1768421354233,1.64065473,3375.3,3374.1,2.96374746]
[1768421354558,1.64065473,3375.3,3373.5,3.43588422]
[1768421354559,1.64065473,3375.3,3374.2,3.35659581]
[1768421354763,0.24284944,3375.3,3374.3,2.99315639]
[1768421355168,0.002,3375.6,3374.3,6.59171603]
[1768421355337,0.002,3375.6,3374.3,6.56208026]
[1768421355536,2.96444273,3375.6,3374.3,6.56208026]
[1768421356251,4.36224802,3375.6,3374.3,6.56208026]
[1768421357170,1.39980529,3375.6,3374.6,0.001]
[1768421357467,0.002,3375.3,3374.6,0.001]
[1768421358277,0.002,3375.6,3374.6,1.35891692]
[1768421358443,0.002,3375.6,3374.6,1.38855006]